[Event "Late-Titled-Tuesday-Blitz-April-30-2024"]
[Site "Chess.com"]
[Date "2024.04.30"]
[Round "3"]
[White "Romadk"]
[Black "alexrustemov"]
[Result "0-1"]
[WhiteElo "2514"]
[BlackElo "2894"]
[TimeControl "180+1"]
[EndTime "14:27:59 PDT"]
[Termination "alexrustemov won by resignation"]

1. d4 {[%clk 0:03:00.9]} 1... d5 {[%clk 0:02:58.1]} 2. Nf3 {[%clk 0:03:01]} 2...
Nf6 {[%clk 0:02:57.1]} 3. g3 {[%clk 0:03:01.2]} 3... Bf5 {[%clk 0:02:53.4]} 4.
Bg2 {[%clk 0:03:01.3]} 4... e6 {[%clk 0:02:52.9]} 5. c4 {[%clk 0:03:01.5]} 5...
c6 {[%clk 0:02:50.6]} 6. Nc3 {[%clk 0:03:01.7]} 6... Nbd7 {[%clk 0:02:38.4]} 7.
Qb3 {[%clk 0:03:01.5]} 7... Qb6 {[%clk 0:02:30]} 8. c5 {[%clk 0:03:01.3]} 8...
Qxb3 {[%clk 0:02:29]} 9. axb3 {[%clk 0:03:02.2]} 9... a6 {[%clk 0:02:28.6]} 10.
b4 {[%clk 0:03:02.5]} 10... O-O-O {[%clk 0:02:25.2]} 11. h3 {[%clk 0:01:46.4]}
11... h6 {[%clk 0:02:24.2]} 12. g4 {[%clk 0:01:46.2]} 12... Bh7 {[%clk
0:02:22.8]} 13. Bf4 {[%clk 0:01:46.9]} 13... Ne4 {[%clk 0:02:17.4]} 14. Ne5
{[%clk 0:01:38.3]} 14... Nxe5 {[%clk 0:02:12.5]} 15. Bxe5 {[%clk 0:01:39.2]}
15... f6 {[%clk 0:02:07.8]} 16. Bf4 {[%clk 0:01:32.2]} 16... Be7 {[%clk
0:02:05]} 17. f3 {[%clk 0:01:24]} 17... Ng5 {[%clk 0:01:57.7]} 18. b5 {[%clk
0:01:01.3]} 18... cxb5 {[%clk 0:01:54.4]} 19. c6 {[%clk 0:00:58.7]} 19... Bd6
{[%clk 0:01:48.6]} 20. Bxd6 {[%clk 0:00:10.2]} 20... Rxd6 {[%clk 0:01:47.8]} 21.
cxb7+ {[%clk 0:00:11.1]} 21... Kxb7 {[%clk 0:01:47.6]} 22. h4 {[%clk 0:00:10.6]}
22... Nf7 {[%clk 0:01:46.2]} 23. e3 {[%clk 0:00:09.3]} 23... Rd7 {[%clk
0:01:34.1]} 24. Kd2 {[%clk 0:00:09.2]} 24... Nd6 {[%clk 0:01:34.4]} 25. b3
{[%clk 0:00:08.9]} 25... Rc8 {[%clk 0:01:33]} 26. Rhc1 {[%clk 0:00:08.8]} 26...
Rdc7 {[%clk 0:01:32.9]} 27. Ne2 {[%clk 0:00:08.8]} 27... Rc2+ {[%clk 0:01:31.9]}
28. Rxc2 {[%clk 0:00:08.8]} 28... Rxc2+ {[%clk 0:01:32.1]} 29. Ke1 {[%clk
0:00:09.7]} 29... Rb2 {[%clk 0:01:31.7]} 30. Nf4 {[%clk 0:00:05.4]} 30... Rxb3
{[%clk 0:01:27.5]} 31. Nxe6 {[%clk 0:00:05.6]} 31... Rxe3+ {[%clk 0:01:27.2]}
32. Kf2 {[%clk 0:00:05.1]} 32... Rxe6 {[%clk 0:01:27.1]} 0-1

[Event "Late-Titled-Tuesday-Blitz-April-30-2024"]
[Site "Chess.com"]
[Date "2024.04.30"]
[Round "3"]
[White "DanielNaroditsky"]
[Black "only_strong_moves"]
[Result "1-0"]
[WhiteElo "3044"]
[BlackElo "2724"]
[TimeControl "180+1"]
[EndTime "14:28:03 PDT"]
[Termination "DanielNaroditsky won by resignation"]

1. e4 {[%clk 0:02:59.4]} 1... c5 {[%clk 0:02:59.1]} 2. c3 {[%clk 0:02:58.9]}
2... Nf6 {[%clk 0:02:58.8]} 3. e5 {[%clk 0:02:58.3]} 3... Nd5 {[%clk 0:02:59.4]}
4. Nf3 {[%clk 0:02:58.9]} 4... Nc6 {[%clk 0:02:59.6]} 5. Bc4 {[%clk 0:02:58.1]}
5... Nb6 {[%clk 0:02:59.6]} 6. Bb3 {[%clk 0:02:58.6]} 6... c4 {[%clk 0:02:56.7]}
7. Bc2 {[%clk 0:02:57.9]} 7... d6 {[%clk 0:02:57.3]} 8. exd6 {[%clk 0:02:57.1]}
8... Qxd6 {[%clk 0:02:58.2]} 9. O-O {[%clk 0:02:57.2]} 9... Bg4 {[%clk
0:02:58.6]} 10. Re1 {[%clk 0:02:57.4]} 10... e6 {[%clk 0:02:58.1]} 11. Na3
{[%clk 0:02:56.1]} 11... Be7 {[%clk 0:02:51.7]} 12. b3 {[%clk 0:02:54.7]} 12...
cxb3 {[%clk 0:02:46.5]} 13. axb3 {[%clk 0:02:55.6]} 13... O-O {[%clk 0:02:46.4]}
14. d4 {[%clk 0:02:54.3]} 14... Rac8 {[%clk 0:02:41]} 15. Nc4 {[%clk 0:02:52.6]}
15... Qb8 {[%clk 0:02:28.4]} 16. Nxb6 {[%clk 0:02:14.4]} 16... axb6 {[%clk
0:02:29.3]} 17. h3 {[%clk 0:02:07]} 17... Bxf3 {[%clk 0:02:28.2]} 18. Qxf3
{[%clk 0:02:05.7]} 18... Nxd4 {[%clk 0:02:27.1]} 19. Bxh7+ {[%clk 0:02:05.5]}
19... Kxh7 {[%clk 0:02:27.7]} 20. cxd4 {[%clk 0:02:05.4]} 20... Rc6 {[%clk
0:02:01.3]} 21. d5 {[%clk 0:01:56.5]} 21... Rcc8 {[%clk 0:01:17.5]} 22. Bb2
{[%clk 0:01:51]} 22... Qd6 {[%clk 0:01:07.2]} 23. Rad1 {[%clk 0:01:48.9]} 23...
e5 {[%clk 0:00:43.9]} 24. Bxe5 {[%clk 0:01:35.5]} 24... Qg6 {[%clk 0:00:43.2]}
25. d6 {[%clk 0:01:35]} 25... Bg5 {[%clk 0:00:39.8]} 26. d7 {[%clk 0:01:33.9]}
26... Rc6 {[%clk 0:00:34.5]} 27. Qg3 {[%clk 0:01:24.8]} 27... Bd8 {[%clk
0:00:20.6]} 28. Bd6 {[%clk 0:01:24.5]} 28... Qxg3 {[%clk 0:00:14.1]} 29. fxg3
{[%clk 0:01:25.4]} 29... Rg8 {[%clk 0:00:14]} 30. Re8 {[%clk 0:01:25.9]} 30...
Bf6 {[%clk 0:00:05.5]} 31. Be7 {[%clk 0:01:25.2]} 1-0

[Event "Late-Titled-Tuesday-Blitz-April-30-2024"]
[Site "Chess.com"]
[Date "2024.04.30"]
[Round "3"]
[White "Laico"]
[Black "ritanovikova"]
[Result "1-0"]
[WhiteElo "2425"]
[BlackElo "2179"]
[TimeControl "180+1"]
[EndTime "14:28:04 PDT"]
[Termination "Laico won on time"]

1. e4 {[%clk 0:03:00.9]} 1... d5 {[%clk 0:02:59.5]} 2. exd5 {[%clk 0:03:00.5]}
2... Qxd5 {[%clk 0:02:59.7]} 3. Nc3 {[%clk 0:03:01.1]} 3... Qd6 {[%clk 0:03:00]}
4. d4 {[%clk 0:03:01.9]} 4... Nf6 {[%clk 0:03:00.2]} 5. Nf3 {[%clk 0:03:00.3]}
5... a6 {[%clk 0:03:00.5]} 6. Ne5 {[%clk 0:02:58.3]} 6... Nc6 {[%clk 0:03:00.5]}
7. Bf4 {[%clk 0:02:47.5]} 7... Qxd4 {[%clk 0:02:54.4]} 8. Nxc6 {[%clk
0:02:41.4]} 8... Qxd1+ {[%clk 0:02:42.3]} 9. Rxd1 {[%clk 0:02:42.3]} 9... bxc6
{[%clk 0:02:39.7]} 10. Bxc7 {[%clk 0:02:42.4]} 10... Bf5 {[%clk 0:02:36]} 11.
Bxa6 {[%clk 0:02:41.9]} 11... Bd7 {[%clk 0:02:17.6]} 12. Bc4 {[%clk 0:02:29.5]}
12... e6 {[%clk 0:02:16.2]} 13. O-O {[%clk 0:02:16.1]} 13... Nd5 {[%clk
0:01:51.1]} 14. Ne4 {[%clk 0:02:14.9]} 14... Nxc7 {[%clk 0:01:49.5]} 15. Rfe1
{[%clk 0:02:06.9]} 15... Be7 {[%clk 0:01:43.4]} 16. f4 {[%clk 0:02:04.3]} 16...
O-O {[%clk 0:01:28.1]} 17. Rxd7 {[%clk 0:02:02.8]} 17... Nd5 {[%clk 0:01:19.4]}
18. Bxd5 {[%clk 0:01:57.6]} 18... cxd5 {[%clk 0:01:20.3]} 19. Rxe7 {[%clk
0:01:57.5]} 19... dxe4 {[%clk 0:01:20.1]} 20. Rxe4 {[%clk 0:01:51.3]} 20... Rxa2
{[%clk 0:01:16.8]} 21. Rb4 {[%clk 0:01:51.4]} 21... g6 {[%clk 0:01:06.6]} 22.
Rbb7 {[%clk 0:01:49]} 22... Kg7 {[%clk 0:01:06.7]} 23. Kf2 {[%clk 0:01:46]}
23... Kf6 {[%clk 0:01:06.8]} 24. Ke3 {[%clk 0:01:39.9]} 24... h6 {[%clk
0:00:59.8]} 25. c4 {[%clk 0:01:37.4]} 25... Rxb2 {[%clk 0:00:55]} 26. Rxf7+
{[%clk 0:01:31.1]} 26... Rxf7 {[%clk 0:00:51.8]} 27. Rxb2 {[%clk 0:01:29.8]}
27... g5 {[%clk 0:00:44.2]} 28. fxg5+ {[%clk 0:01:27.6]} 28... hxg5 {[%clk
0:00:44.1]} 29. Rf2+ {[%clk 0:01:27]} 1-0

[Event "Late-Titled-Tuesday-Blitz-April-30-2024"]
[Site "Chess.com"]
[Date "2024.04.30"]
[Round "3"]
[White "ural58"]
[Black "jraosam"]
[Result "1-0"]
[WhiteElo "2539"]
[BlackElo "2070"]
[TimeControl "180+1"]
[EndTime "14:28:11 PDT"]
[Termination "ural58 won by resignation"]

1. e4 {[%clk 0:03:00.9]} 1... e5 {[%clk 0:02:59.3]} 2. Nf3 {[%clk 0:03:00.1]}
2... Nc6 {[%clk 0:02:59.9]} 3. Bc4 {[%clk 0:02:59.8]} 3... Nf6 {[%clk
0:02:59.1]} 4. Ng5 {[%clk 0:02:59.3]} 4... d5 {[%clk 0:02:58.4]} 5. exd5 {[%clk
0:02:58.5]} 5... Na5 {[%clk 0:02:59]} 6. Bb5+ {[%clk 0:02:58.3]} 6... c6 {[%clk
0:02:59.2]} 7. dxc6 {[%clk 0:02:58.3]} 7... bxc6 {[%clk 0:03:00.1]} 8. Bd3
{[%clk 0:02:54.6]} 8... h6 {[%clk 0:02:42.7]} 9. Ne4 {[%clk 0:02:51.8]} 9...
Nxe4 {[%clk 0:02:36.3]} 10. Bxe4 {[%clk 0:02:51.1]} 10... Be7 {[%clk 0:02:31.5]}
11. Qf3 {[%clk 0:02:46.5]} 11... O-O {[%clk 0:02:30.8]} 12. Bf5 {[%clk
0:02:45.9]} 12... Ba6 {[%clk 0:02:30.1]} 13. d3 {[%clk 0:02:45.2]} 13... g6
{[%clk 0:02:30.2]} 14. Bh3 {[%clk 0:02:42.4]} 14... f5 {[%clk 0:02:28.2]} 15.
Bxh6 {[%clk 0:02:41.1]} 15... e4 {[%clk 0:02:13.6]} 16. Qg3 {[%clk 0:02:38.6]}
16... Rf6 {[%clk 0:02:08.9]} 17. O-O {[%clk 0:02:32.3]} 17... exd3 {[%clk
0:02:08.7]} 18. cxd3 {[%clk 0:02:27.6]} 18... Bxd3 {[%clk 0:02:06.1]} 19. Rd1
{[%clk 0:02:22.7]} 19... Rd6 {[%clk 0:02:04.4]} 20. Rxd3 {[%clk 0:02:17.7]}
20... Qe8 {[%clk 0:01:54.3]} 21. Nc3 {[%clk 0:02:09]} 21... Rad8 {[%clk
0:01:52.1]} 22. Rxd6 {[%clk 0:02:07.7]} 22... Bxd6 {[%clk 0:01:53]} 23. Qe3
{[%clk 0:02:05.6]} 23... Qf7 {[%clk 0:01:52.6]} 24. Bg5 {[%clk 0:02:00.8]} 24...
Re8 {[%clk 0:01:52.9]} 25. Qd3 {[%clk 0:01:58.6]} 25... Nc4 {[%clk 0:01:52.9]}
26. b3 {[%clk 0:01:51.7]} 26... Qd7 {[%clk 0:01:42]} 27. Bf4 {[%clk 0:01:37.5]}
27... Qg7 {[%clk 0:01:12.3]} 28. Bxd6 {[%clk 0:01:29.4]} 28... Nxd6 {[%clk
0:01:11.6]} 29. Rd1 {[%clk 0:01:27.7]} 29... Ne4 {[%clk 0:01:10.5]} 30. Nxe4
{[%clk 0:01:27.1]} 30... Rxe4 {[%clk 0:01:11.4]} 31. Qd8+ {[%clk 0:01:22.4]}
31... Kh7 {[%clk 0:01:11.2]} 32. g3 {[%clk 0:01:19.8]} 32... Re7 {[%clk
0:01:04]} 33. Bg2 {[%clk 0:01:14.5]} 33... Qe5 {[%clk 0:01:01.4]} 34. Rd7 {[%clk
0:01:10.4]} 34... Rxd7 {[%clk 0:00:54.8]} 35. Qxd7+ {[%clk 0:01:09.7]} 35... Kh6
{[%clk 0:00:55.7]} 36. Qd2+ {[%clk 0:01:08.4]} 36... g5 {[%clk 0:00:55.4]} 37.
Bxc6 {[%clk 0:01:06.7]} 37... a5 {[%clk 0:00:55.3]} 38. h4 {[%clk 0:01:02.4]}
38... f4 {[%clk 0:00:54.1]} 39. hxg5+ {[%clk 0:01:01.3]} 39... Kh7 {[%clk
0:00:51.3]} 40. Qd7+ {[%clk 0:00:58.6]} 40... Qg7 {[%clk 0:00:51.3]} 41. Qxg7+
{[%clk 0:00:58.2]} 1-0

[Event "Late-Titled-Tuesday-Blitz-April-30-2024"]
[Site "Chess.com"]
[Date "2024.04.30"]
[Round "3"]
[White "dennisodessa"]
[Black "carloseduar100"]
[Result "1-0"]
[WhiteElo "2552"]
[BlackElo "2221"]
[TimeControl "180+1"]
[EndTime "14:28:14 PDT"]
[Termination "dennisodessa won on time"]

1. d4 {[%clk 0:03:00.2]} 1... d5 {[%clk 0:02:51.9]} 2. c4 {[%clk 0:02:58.8]}
2... e5 {[%clk 0:02:51.6]} 3. dxe5 {[%clk 0:02:58.9]} 3... d4 {[%clk 0:02:52.5]}
4. a3 {[%clk 0:02:59.1]} 4... Nc6 {[%clk 0:02:52.4]} 5. Nf3 {[%clk 0:02:59.3]}
5... Nge7 {[%clk 0:02:52.9]} 6. b4 {[%clk 0:02:57.8]} 6... Ng6 {[%clk
0:02:53.1]} 7. Bb2 {[%clk 0:02:55.5]} 7... a5 {[%clk 0:02:52.7]} 8. b5 {[%clk
0:02:54.9]} 8... Ncxe5 {[%clk 0:02:52.9]} 9. Bxd4 {[%clk 0:02:42.8]} 9... Nxc4
{[%clk 0:02:49.9]} 10. e3 {[%clk 0:02:42.7]} 10... Nd6 {[%clk 0:02:49.3]} 11.
Nc3 {[%clk 0:02:30.9]} 11... Bg4 {[%clk 0:02:48.8]} 12. Be2 {[%clk 0:02:28.3]}
12... Qd7 {[%clk 0:02:40.9]} 13. h3 {[%clk 0:02:23.2]} 13... Bf5 {[%clk
0:02:37.2]} 14. g4 {[%clk 0:02:14.3]} 14... Be4 {[%clk 0:02:33.8]} 15. Nxe4
{[%clk 0:02:14.4]} 15... Nxe4 {[%clk 0:02:34.1]} 16. Qc2 {[%clk 0:02:10.8]}
16... Nd6 {[%clk 0:02:18]} 17. Rc1 {[%clk 0:02:09.1]} 17... Nxb5 {[%clk
0:02:03.1]} 18. Qe4+ {[%clk 0:01:23.4]} 18... Be7 {[%clk 0:00:45.8]} 19. Qxb7
{[%clk 0:01:22.6]} 19... O-O {[%clk 0:00:44.1]} 20. Qxb5 {[%clk 0:01:21.4]}
20... Qxb5 {[%clk 0:00:39.9]} 21. Bxb5 {[%clk 0:01:22.3]} 21... Bxa3 {[%clk
0:00:40.8]} 22. Rxc7 {[%clk 0:01:18.2]} 22... Bb4+ {[%clk 0:00:40.1]} 23. Ke2
{[%clk 0:01:14]} 23... a4 {[%clk 0:00:40.2]} 24. Rb1 {[%clk 0:01:08.2]} 24...
Bd6 {[%clk 0:00:37.3]} 25. Rd7 {[%clk 0:01:07.1]} 1-0

[Event "Late-Titled-Tuesday-Blitz-April-30-2024"]
[Site "Chess.com"]
[Date "2024.04.30"]
[Round "3"]
[White "Heliosis11"]
[Black "ahmedkandiliii"]
[Result "0-1"]
[WhiteElo "2390"]
[BlackElo "2610"]
[TimeControl "180+1"]
[EndTime "14:28:18 PDT"]
[Termination "ahmedkandiliii won on time"]

1. e4 {[%clk 0:03:00.9]} 1... g6 {[%clk 0:03:00]} 2. d4 {[%clk 0:02:59.9]} 2...
Bg7 {[%clk 0:03:00.9]} 3. Nf3 {[%clk 0:02:59.2]} 3... c6 {[%clk 0:03:01.3]} 4.
a4 {[%clk 0:02:58]} 4... d5 {[%clk 0:03:00.1]} 5. e5 {[%clk 0:02:45.9]} 5... f6
{[%clk 0:02:58.3]} 6. Bf4 {[%clk 0:02:44.4]} 6... Nh6 {[%clk 0:02:56.8]} 7. Bd3
{[%clk 0:02:41.8]} 7... O-O {[%clk 0:02:56.4]} 8. Qd2 {[%clk 0:02:38.7]} 8...
Nf7 {[%clk 0:02:50.8]} 9. O-O {[%clk 0:02:34.2]} 9... Bg4 {[%clk 0:02:49.1]} 10.
exf6 {[%clk 0:02:23.9]} 10... Bxf6 {[%clk 0:02:44.8]} 11. Ne5 {[%clk 0:02:24.2]}
11... Nxe5 {[%clk 0:02:38.8]} 12. dxe5 {[%clk 0:02:12.7]} 12... Bg7 {[%clk
0:02:37.6]} 13. Nc3 {[%clk 0:02:08]} 13... Nd7 {[%clk 0:02:35.1]} 14. Rfe1
{[%clk 0:02:00]} 14... Nc5 {[%clk 0:02:33.3]} 15. h3 {[%clk 0:01:54.3]} 15...
Bf5 {[%clk 0:02:29.9]} 16. Bxf5 {[%clk 0:01:42.4]} 16... Rxf5 {[%clk 0:02:30.8]}
17. Bg3 {[%clk 0:01:43]} 17... e6 {[%clk 0:02:25.1]} 18. b4 {[%clk 0:01:21.2]}
18... Nd7 {[%clk 0:02:23.9]} 19. f4 {[%clk 0:01:21.5]} 19... Qc7 {[%clk
0:02:09.5]} 20. Ne2 {[%clk 0:01:14]} 20... c5 {[%clk 0:01:58.4]} 21. bxc5 {[%clk
0:01:12.9]} 21... Nxc5 {[%clk 0:01:59.1]} 22. Nd4 {[%clk 0:00:55.9]} 22... Rf7
{[%clk 0:01:58.3]} 23. Bh4 {[%clk 0:00:49.4]} 23... Ne4 {[%clk 0:01:55.6]} 24.
Qe3 {[%clk 0:00:49.3]} 24... Qd7 {[%clk 0:01:37.2]} 25. Rad1 {[%clk 0:00:38.8]}
25... Raf8 {[%clk 0:01:35.4]} 26. Rf1 {[%clk 0:00:20.6]} 26... Bh6 {[%clk
0:01:32.8]} 27. Nb5 {[%clk 0:00:18.7]} 27... Bxf4 {[%clk 0:01:31.3]} 28. Qxa7
{[%clk 0:00:13.5]} 28... Bxe5 {[%clk 0:01:28.9]} 29. Rxf7 {[%clk 0:00:09.6]}
29... Qxf7 {[%clk 0:01:29.8]} 30. Qb6 {[%clk 0:00:09.1]} 30... g5 {[%clk
0:01:18.9]} 31. Qe3 {[%clk 0:00:00.4]} 31... gxh4 {[%clk 0:01:15.7]} 0-1

[Event "Late-Titled-Tuesday-Blitz-April-30-2024"]
[Site "Chess.com"]
[Date "2024.04.30"]
[Round "3"]
[White "Kostukov_Alex"]
[Black "brother-bear"]
[Result "1-0"]
[WhiteElo "2384"]
[BlackElo "2050"]
[TimeControl "180+1"]
[EndTime "14:28:31 PDT"]
[Termination "Kostukov_Alex won on time"]

1. g3 {[%clk 0:03:00.6]} 1... d5 {[%clk 0:02:27.1]} 2. Bg2 {[%clk 0:02:58.4]}
2... c5 {[%clk 0:02:26.2]} 3. d3 {[%clk 0:02:57.3]} 3... e5 {[%clk 0:02:24]} 4.
e4 {[%clk 0:02:57.3]} 4... d4 {[%clk 0:02:23.1]} 5. f4 {[%clk 0:02:56.4]} 5...
Nc6 {[%clk 0:02:22.9]} 6. Nf3 {[%clk 0:02:55.5]} 6... Nf6 {[%clk 0:02:23.4]} 7.
O-O {[%clk 0:02:54.1]} 7... Bd6 {[%clk 0:02:21.7]} 8. Na3 {[%clk 0:02:50.4]}
8... Bg4 {[%clk 0:02:14.4]} 9. h3 {[%clk 0:02:46.6]} 9... Bxf3 {[%clk
0:02:13.7]} 10. Qxf3 {[%clk 0:02:46.4]} 10... Qe7 {[%clk 0:01:58.6]} 11. Nc4
{[%clk 0:02:45.3]} 11... Bc7 {[%clk 0:01:57]} 12. a4 {[%clk 0:02:44.3]} 12...
O-O-O {[%clk 0:01:54.8]} 13. Bd2 {[%clk 0:02:39]} 13... Kb8 {[%clk 0:01:54.1]}
14. a5 {[%clk 0:02:33]} 14... h5 {[%clk 0:01:48]} 15. h4 {[%clk 0:02:24.3]}
15... Ng4 {[%clk 0:01:27.8]} 16. Bh3 {[%clk 0:02:23.1]} 16... exf4 {[%clk
0:01:23.5]} 17. Bxf4 {[%clk 0:02:14.8]} 17... Bxf4 {[%clk 0:01:10.7]} 18. Qxf4+
{[%clk 0:02:14.6]} 18... Nge5 {[%clk 0:01:09.6]} 19. Rf2 {[%clk 0:02:01.4]}
19... f6 {[%clk 0:01:08.5]} 20. b3 {[%clk 0:01:41.3]} 20... Ka8 {[%clk
0:01:05.7]} 21. Qf5 {[%clk 0:01:36.6]} 21... Nxc4 {[%clk 0:00:53.9]} 22. bxc4
{[%clk 0:01:33.2]} 22... Ne5 {[%clk 0:00:31.3]} 23. Qe6 {[%clk 0:01:27.1]} 23...
Qc7 {[%clk 0:00:23.9]} 24. Rff1 {[%clk 0:01:18.2]} 24... Ng4 {[%clk 0:00:16]}
25. Rf3 {[%clk 0:01:10.7]} 25... Ne3 {[%clk 0:00:07.7]} 26. a6 {[%clk
0:01:07.5]} 26... Nxc2 {[%clk 0:00:05.1]} 27. axb7+ {[%clk 0:01:05.9]} 27...
Qxb7 {[%clk 0:00:05.2]} 28. Ra5 {[%clk 0:00:57.4]} 28... Ne3 {[%clk 0:00:03.8]}
29. Rxe3 {[%clk 0:00:54]} 29... dxe3 {[%clk 0:00:02.9]} 30. e5 {[%clk
0:00:54.3]} 30... Rxd3 {[%clk 0:00:01.7]} 31. Bg2 {[%clk 0:00:53.5]} 1-0

[Event "Late-Titled-Tuesday-Blitz-April-30-2024"]
[Site "Chess.com"]
[Date "2024.04.30"]
[Round "3"]
[White "DucksParadise"]
[Black "jaramsdal"]
[Result "1-0"]
[WhiteElo "2598"]
[BlackElo "2376"]
[TimeControl "180+1"]
[EndTime "14:28:36 PDT"]
[Termination "DucksParadise won by resignation"]

1. g3 {[%clk 0:02:59.4]} 1... e5 {[%clk 0:02:53.8]} 2. Bg2 {[%clk 0:02:58.8]}
2... d5 {[%clk 0:02:53.9]} 3. d3 {[%clk 0:02:56.4]} 3... Be6 {[%clk 0:02:48.3]}
4. Nf3 {[%clk 0:02:53.7]} 4... f6 {[%clk 0:02:40.9]} 5. a3 {[%clk 0:02:52.2]}
5... Bd6 {[%clk 0:02:36.6]} 6. b4 {[%clk 0:02:49.5]} 6... a5 {[%clk 0:02:35.2]}
7. b5 {[%clk 0:02:33.5]} 7... Nd7 {[%clk 0:02:26.8]} 8. Bb2 {[%clk 0:02:33]}
8... Ne7 {[%clk 0:02:26]} 9. Nbd2 {[%clk 0:02:32.7]} 9... O-O {[%clk 0:02:26.1]}
10. O-O {[%clk 0:02:32.8]} 10... Nb6 {[%clk 0:02:21.9]} 11. a4 {[%clk
0:02:29.2]} 11... Kh8 {[%clk 0:02:18.5]} 12. e4 {[%clk 0:02:25.2]} 12... d4
{[%clk 0:02:16]} 13. c3 {[%clk 0:02:24.9]} 13... dxc3 {[%clk 0:02:11.3]} 14.
Bxc3 {[%clk 0:02:24.6]} 14... Bb4 {[%clk 0:02:10.2]} 15. Qc2 {[%clk 0:02:20.5]}
15... Qd6 {[%clk 0:01:45.9]} 16. d4 {[%clk 0:02:11.5]} 16... Bxc3 {[%clk
0:01:29.8]} 17. Qxc3 {[%clk 0:02:12.4]} 17... exd4 {[%clk 0:01:12]} 18. Nxd4
{[%clk 0:02:13.3]} 18... Bf7 {[%clk 0:01:08.6]} 19. Rfd1 {[%clk 0:02:04.6]}
19... Rfd8 {[%clk 0:00:49.8]} 20. N2b3 {[%clk 0:02:01.1]} 20... Qb4 {[%clk
0:00:41.4]} 21. Qxb4 {[%clk 0:01:47.4]} 21... axb4 {[%clk 0:00:42.3]} 22. Nc5
{[%clk 0:01:47.6]} 22... Nxa4 {[%clk 0:00:28.1]} 23. Nxa4 {[%clk 0:01:37.2]}
23... c6 {[%clk 0:00:02.2]} 24. Bf3 {[%clk 0:00:54.8]} 24... cxb5 {[%clk
0:00:01.5]} 25. Nxb5 {[%clk 0:00:52.4]} 25... Rxd1+ {[%clk 0:00:00.1]} 26. Bxd1
{[%clk 0:00:53.3]} 26... Be8 {[%clk 0:00:00.3]} 1-0

[Event "Late-Titled-Tuesday-Blitz-April-30-2024"]
[Site "Chess.com"]
[Date "2024.04.30"]
[Round "3"]
[White "AsaHoffmann"]
[Black "kylelancman"]
[Result "1-0"]
[WhiteElo "2329"]
[BlackElo "2500"]
[TimeControl "180+1"]
[EndTime "14:28:39 PDT"]
[Termination "AsaHoffmann won by resignation"]

1. d4 {[%clk 0:02:55.8]} 1... d5 {[%clk 0:02:59]} 2. Bg5 {[%clk 0:02:50.2]} 2...
f6 {[%clk 0:02:57.4]} 3. Bf4 {[%clk 0:02:48.9]} 3... Nc6 {[%clk 0:02:54.5]} 4.
Nf3 {[%clk 0:02:48.4]} 4... Bg4 {[%clk 0:02:54.3]} 5. Nbd2 {[%clk 0:02:40.2]}
5... g5 {[%clk 0:02:49.9]} 6. Bg3 {[%clk 0:02:36.3]} 6... Nh6 {[%clk 0:02:49.9]}
7. e3 {[%clk 0:02:14.2]} 7... Nf5 {[%clk 0:02:47.5]} 8. Bb5 {[%clk 0:02:13.1]}
8... h5 {[%clk 0:02:41.8]} 9. h3 {[%clk 0:02:12.1]} 9... Nxg3 {[%clk 0:02:41.2]}
10. fxg3 {[%clk 0:02:11]} 10... Bd7 {[%clk 0:02:36.8]} 11. c4 {[%clk 0:02:04.6]}
11... e6 {[%clk 0:02:17.3]} 12. Qc2 {[%clk 0:02:03.2]} 12... Rh6 {[%clk
0:01:58.3]} 13. a3 {[%clk 0:02:02.2]} 13... a6 {[%clk 0:01:56.4]} 14. Bxc6
{[%clk 0:01:54.2]} 14... Bxc6 {[%clk 0:01:56.2]} 15. O-O-O {[%clk 0:01:52.8]}
15... Bd6 {[%clk 0:01:51.1]} 16. g4 {[%clk 0:01:48.9]} 16... h4 {[%clk
0:01:47.6]} 17. e4 {[%clk 0:01:48.2]} 17... dxe4 {[%clk 0:01:36.3]} 18. Nxe4
{[%clk 0:01:46]} 18... Bf4+ {[%clk 0:01:35.4]} 19. Kb1 {[%clk 0:01:45.9]} 19...
Qe7 {[%clk 0:01:28.3]} 20. d5 {[%clk 0:01:42.8]} 20... Bd7 {[%clk 0:01:23.4]}
21. Rhe1 {[%clk 0:01:34]} 21... O-O-O {[%clk 0:01:18.1]} 22. Nd4 {[%clk
0:01:33.3]} 22... e5 {[%clk 0:01:15]} 23. Nf5 {[%clk 0:01:20.1]} 23... Bxf5
{[%clk 0:01:13.8]} 24. gxf5 {[%clk 0:01:19.9]} 24... Kb8 {[%clk 0:01:02.2]} 25.
c5 {[%clk 0:01:19.4]} 25... Rhh8 {[%clk 0:00:57.3]} 26. Qa4 {[%clk 0:01:09.1]}
26... Ka7 {[%clk 0:00:40.8]} 27. d6 {[%clk 0:01:01.3]} 27... cxd6 {[%clk
0:00:35.9]} 28. cxd6 {[%clk 0:01:00.1]} 28... Qf7 {[%clk 0:00:28.3]} 29. Rd3
{[%clk 0:00:56.9]} 29... Rc8 {[%clk 0:00:18.9]} 30. d7 {[%clk 0:00:54.3]} 30...
Rc4 {[%clk 0:00:18.9]} 31. Nd6 {[%clk 0:00:44.6]} 31... Rxa4 {[%clk 0:00:05.7]}
32. Nxf7 {[%clk 0:00:44]} 1-0